Cogmind - Beta 13 X1 @@@ ROGUE MODE // 2023.08.28 @ 02:23:34 Player: VR-DUX Result: Destroyed by D-53 Grenadier with Mini Grenade Launcher Performance ------------- Evolutions (0) 0 Regions Visited (2) 400 Robots Destroyed (30) 150 Value Destroyed (473) 473 Prototype IDs (0) 0 Alien Tech Used (0) 0 Bonus (0) 0 TOTAL SCORE: 1023 Bonus ------- None Cogmind --------- Core Integrity 0/250 Matter 74/300 Energy 100/100 System Corruption 4% Temperature Cool (0) Movement Core (50) Location -10/Mines Parts ------- > --- POWER (1) -------- (None) > --- PROPULSION (2) --- (None) > --- UTILITY (2) ------ (None) > --- WEAPON (2) ------- (None) > --- INVENTORY (5) ---- Light Treads Light Treads Compact Wheel Medium Storage Unit Signal Interpreter Peak State ------------ > --- POWER ------------ Ion Engine > --- PROPULSION ------- Wheel Wheel > --- UTILITY ---------- Huge Storage Unit Signal Interpreter > --- WEAPON ----------- Autogun Autogun > --- INVENTORY -------- Ion Engine Light Ion Engine Light Treads Light Treads Wheel Compact Wheel Compact Wheel Flight Unit Small Storage Unit Medium Storage Unit Large Storage Unit High-capacity Storage Unit High-capacity Matter Pod Signal Interpreter Light Armor Plating Autogun Light Cannon Light Cannon Mining Claw [Rating: 11] Favorites ----------- Power Light Ion Engine Engine Light Ion Engine Propulsion Wheel Leg Aluminum Leg Wheel Wheel Utility Signal Interpreter Storage Huge Storage Unit Processor Signal Interpreter Protection Light Armor Plating Weapon Autogun Energy Gun Small Laser Ballistic Gun Autogun Ballistic Cannon Light Cannon Slashing Weapon Mining Claw Build | -11 -10 -10 ------- Run | Jun Mat Min Slots Evolved . | . . . Power . | . . . Propulsion . | . . . Utility . | . . . Weapon . | . . . Parts Attached 30 | . 28 2 Power 3 | . 3 . Engine 3 | . 3 . Core . | . . . Reactor . | . . . Propulsion 6 | . 6 . Treads . | . . . Leg . | . . . Wheel 6 | . 6 . Hover . | . . . Flight . | . . . Utility 5 | . 5 . Device . | . . . Storage 3 | . 3 . Processor 1 | . 1 . Hackware . | . . . Protection 1 | . 1 . Artifact . | . . . Weapon 16 | . 14 2 Energy Gun . | . . . Energy Cannon . | . . . Ballistic Gun 12 | . 11 1 Ballistic Cannon 1 | . . 1 Launcher . | . . . Special Weapon . | . . . Impact Weapon . | . . . Slashing Weapon 3 | . 3 . Piercing Weapon . | . . . Special Melee Weapon . | . . . Unidentified Prototypes . | . . . Parts Lost 6 | . . 6 Power 1 | . . 1 Propulsion 2 | . . 2 Utility . | . . . Weapon 3 | . . 3 Highest Loss Streak 6 | . . 6 To Critical Strikes . | . . . Average Slot Usage (%) 97 | . 96 100 Engine 13 | . 13 14 Wheel 26 | . 26 28 Storage 14 | . 14 14 Processor 12 | . 12 14 Energy Gun 1 | . 1 . Ballistic Gun 24 | . 24 24 Slashing Weapon 1 | . 1 . Naked Turns 1 | . . 1 Heaviest Build 91 | 10 91 91 Greatest Support 20 | 20 20 20 Greatest Overweight (x) 9 | . 9 9 Average Overweight (x) 2 | . 2 4 Largest Inventory Capacity 25 | 8 25 25 Average Capacity 20 | 8 19 24 Most Carried 19 | 6 19 18 Average Carried 12 | 6 12 17 Final Capacity 25 | 8 25 5 Final Carried 18 | 6 18 5 Class Distribution -------------------- 86% | Mutant 13% | Scavenger-Mutant Dominant Class ---------------- Mutant | -10/Materials Scavenger-Mutant | -10/Mines Resources | -11 -10 -10 ----------- Run | Jun Mat Min Matter Collected 758 | 200 558 . Remotely . | . . . Salvage Created 688 | . 656 32 Parts 68 | . 68 . Haulers Intercepted 1 | . 1 . Recyclers Shooed . | . . . Parts Field Recycled . | . . . Retrieved Matter . | . . . Parts Self-Destructed . | . . . Prevented . | . . . Kills | -11 -10 -10 ------- Run | Jun Mat Min Combat Hostiles Destroyed 19 | . 15 4 Guns 16 | . 15 1 Cannons 3 | . . 3 Classes Destroyed 9 | . 8 1 Worker 4 | . 4 . Builder 4 | . 4 . Hauler 1 | . 1 . Mechanic 1 | . 1 . Operator 2 | . 2 . Watcher 3 | . 3 . Swarmer 9 | . 9 . Grunt 6 | . 6 . Assembled 4 | . . 4 Best Kill Streak 7 | . 7 4 Combat Bots Only 6 | . 6 4 Max Kills in Single Turn 2 | . 2 1 Gunslinging 1 | . 1 . Exploded . | . . . Melee . | . . . Uniques/NPCs Destroyed . | . . . Combat | -11 -10 -10 -------- Run | Jun Mat Min Damage Taken 982 | . 398 584 Core 266 | . 89 177 Absorbed by Shields . | . . . Core Remaining (%) 100 | 100 . . Volleys Fired 83 | . 74 9 Largest 2 | . 2 2 Hottest 60 | . 60 58 Shots Fired 147 | . 129 18 Gun 139 | . 129 10 Cannon 8 | . . 8 Launcher . | . . . Special . | . . . Kinetic 135 | . 117 18 Thermal 12 | . 12 . Explosive . | . . . Electromagnetic . | . . . Robot Hit Streak 9 | . 9 3 Robot Miss Streak 3 | . 3 2 Penetration Max . | . . . Secondary Targets 2 | . 2 . Max Gunslinging Chain 1 | . 1 . Shots Hit Robots 76 | . 67 9 Core Hits 43 | . 37 6 Critical Kills . | . . . Critical Parts Destroyed . | . . . Critical Strikes . | . . . Melee Attacks 6 | . 6 . Impact . | . . . Slashing 6 | . 6 . Piercing . | . . . Sneak Attacks 1 | . 1 . Combat Hostiles . | . . . Follow-up Attacks . | . . . Damage Inflicted 1263 | . 1085 178 Guns 1006 | . 941 65 Cannons 113 | . . 113 Explosions 98 | . 98 . Melee 46 | . 46 . Ramming . | . . . Kinetic 1076 | . 898 178 Thermal 43 | . 43 . Explosive 98 | . 98 . Electromagnetic . | . . . Impact . | . . . Slashing 46 | . 46 . Piercing . | . . . Highest Corruption 4 | . . 4 Average Corruption 4 | . . 4 Corruption Purged . | . . . Corruption Blocked . | . . . Effects 1 | . . 1 Matter Fused 1 | . . 1 Overload Shots . | . . . Overflow Damage 6 | . 6 . Projectiles . | . . . Explosions . | . . . Melee 6 | . 6 . Knockbacks 2 | . . 2 Impact . | . . . Kinetic 2 | . . 2 Secondary . | . . . Self-Inflicted Damage . | . . . Shots . | . . . Rammed . | . . . Targets Rammed . | . . . Kicked . | . . . Crushed . | . . . Highest Temperature 46 | . 40 46 Average Temperature 11 | . 10 17 Received Heat Transfer 212 | . 132 80 Siege Activations . | . . . Robots Corrupted . | . . . Combat Hostiles . | . . . Parts Fried . | . . . Impact Corruptions . | . . . Robots Melted . | . . . Combat Hostiles . | . . . Parts Melted . | . . . Heat Transferred 100 | . 100 . Parts Sabotaged . | . . . Parts Stolen . | . . . Parts Stripped . | . . . Power Chain Reactions . | . . . Missiles Intercepted . | . . . Alert | -11 -10 -10 ------- Run | Jun Mat Min Peak Influence 368 | . 368 99 Initial 99 | . . 99 Average 118 | . 122 92 Maximum Alert Level 1 | . 1 . Low Security (%) 72 | 100 69 100 Level 1 27 | . 30 . Level 2 . | . . . Level 3 . | . . . Level 4 . | . . . Level 5 . | . . . High Security . | . . . Max Security . | . . . Squads Dispatched 5 | . 5 . Investigation 4 | . 4 . Extermination . | . . . Reinforcement 1 | . 1 . Assault . | . . . Garrison . | . . . Intercept . | . . . Searches Triggered . | . . . Construction Impeded . | . . . Haulers Reinforced . | . . . Active Scanning Responses . | . . . Cargo Convoy Interrupts . | . . . Stealth | -11 -10 -10 --------- Run | Jun Mat Min Distress Signals . | . . . Communications Jammed . | . . . Distress Signals . | . . . Times Spotted 45 | . 26 19 Peak Tracking Total 20 | . 5 20 Tactical Retreats . | . . . Traps | -11 -10 -10 ------- Run | Jun Mat Min Traps Triggered 5 | . 5 . Indirectly . | . . . Trap Hack Attempts . | . . . Triggered . | . . . Disarmed . | . . . Reprogrammed . | . . . Reused . | . . . Traps Extracted . | . . . Installed . | . . . Triggered . | . . . Machines | -11 -10 -10 ---------- Run | Jun Mat Min Machines Disabled 6 | . 6 . Max in Single Turn 2 | . 2 . Machines Repaired . | . . . Machines Sabotaged . | . . . Overloaded Fab Kills . | . . . Hacking | -11 -10 -10 --------- Run | Jun Mat Min Machines Accessed 8 | . 8 . Terminals 6 | . 6 . Fabricators . | . . . Repair Stations . | . . . Recycling Units 2 | . 2 . Scanalyzers . | . . . Garrison Access . | . . . Total Hacks 20 | . 20 . Successful 5 | . 5 . Failed 15 | . 15 . Catastrophic 3 | . 3 . Database Lockouts . | . . . Manual 23 | . 23 . Terminals 16 | . 16 . Fabricators . | . . . Repair Stations . | . . . Recycling Units 4 | . 4 . Scanalyzers . | . . . Garrison Access . | . . . Terminal Hacks 2 | . 2 . Robot Analysis 1 | . 1 . Branch Access Points 1 | . 1 . Fabricator Hacks . | . . . Repair Station Hacks . | . . . Recycling Unit Hacks 2 | . 2 . Retrieve Components 2 | . 2 . Scanalyzer . | . . . Garrison Access Hacks . | . . . Unauthorized Hacks 1 | . 1 . Terminals 1 | . 1 . Assimilate 1 | . 1 . Fabricators . | . . . Repair Stations . | . . . Recycling Units . | . . . Scanalyzers . | . . . Garrison Access . | . . . Data Cores Recovered . | . . . Used . | . . . Hacking Detections 7 | . 7 . Full Trace Events 5 | . 5 . Feedback Events . | . . . Feedback Blocked . | . . . Robot Schematics Acquired . | . . . Robots Built . | . . . Authchips . | . . . Time . | . . . Total Robot Build Rating . | . . . Part Schematics Acquired . | . . . Parts Built . | . . . Authchips . | . . . Time . | . . . Total Part Build Rating . | . . . Parts Repaired . | . . . Time . | . . . Parts Recycled . | . . . Recycled Matter . | . . . Retrieved Matter . | . . . Retrieved Components 8 | . 8 . Parts Scanalyzed . | . . . Part Schematics Acquired . | . . . Parts Damaged . | . . . Bothacking | -11 -10 -10 ------------ Run | Jun Mat Min Used RIF Installer . | . . . Robots Hacked . | . . . Non-combat . | . . . Combat . | . . . Robot Hacks Applied . | . . . Relay Couplers Released . | . . . Fabnet Peak Effective % . | . . . Robots Rewired . | . . . Allies Hacked . | . . . Hacks Repelled . | . . . Allies | -11 -10 -10 -------- Run | Jun Mat Min Total Allies . | . . . Largest Group . | . . . Highest-Rated Group . | . . . Highest-Rated Ally . | . . . Total Orders . | . . . Ally Attacks . | . . . Total Damage . | . . . Kills . | . . . Allies Corrupted . | . . . Allies Melted . | . . . Intel | -11 -10 -10 ------- Run | Jun Mat Min Robot Analysis Total 1 | . 1 . Derelict Logs Recovered . | . . . Drone Launches . | . . . Drone Recoveries . | . . . Exploration | -11 -10 -10 ------------- Run | Jun Mat Min Turns Passed 1348 | 9 1205 134 Spaces Moved 885 | 8 801 76 Core 2 | . . 2 Treads . | . . . Legs 8 | 8 . . Wheels 875 | . 801 74 Hover . | . . . Flight . | . . . Fastest Speed 50 | 120 80 50 Average Speed 118 | 120 116 139 Slowest Speed 215 | 120 215 215 Overloaded Moves . | . . . Propulsion Burnouts . | . . . Robots Hopped . | . . . Cave-ins Triggered . | . . . Exploration Rate (%) 40 | 2 92 27 Regions Visited 2 Branch Regions 1 Pre-discovered Areas . | . . . Known Exits Taken 1 | . 1 . Unknown Exits Taken 1 | 1 . . Scrap Searched . | . . . Spaces Dug 5 | . 5 . Terrain Destroyed 29 | . 29 . Melee 5 | . 5 . Projectile . | . . . AOE 24 | . 24 . Terrain Rammed . | . . . Walls Destroyed . | . . . Machines Disabled . | . . . Actions | -11 -10 -10 --------- Run | Jun Mat Min Total 1043 | 7 949 87 Wait 7 | . 7 . Move 883 | 7 800 76 Hop . | . . . Pick Up 18 | . 18 . Fast Attach 12 | . 12 . Attach 4 | . 2 2 Detach 2 | . 2 . Swap 14 | . 14 . Drop 14 | . 14 . Fire 83 | . 74 9 Melee 6 | . 6 . Ram . | . . . Kick . | . . . Crush . | . . . Escape Stasis . | . . . Rewire . | . . . Trap . | . . . Miscellaneous . | . . . Route ------- -11/Junkyard -10/Materials (discovered 5 exits: [*Mat x3] / *Min x2) -10/Mines History --------- Turn | Location | Event 1 | -11/Junkyard | Discovered new exit (range 1) 10 | -11/Junkyard | Entered Materials 222 | -10/Materials | Discovered new exit (range 4) 314 | -10/Materials | Build established: Mutant 515 | -10/Materials | Discovered new exit (range 11) 536 | -10/Materials | Identified exit to Mines 613 | -10/Materials | Discovered new exit (range 13) 960 | -10/Materials | Discovered new exit (range 16) 1215 | -10/Materials | Entered Mines 1302 | -10/Mines | Assembled infested the area 1328 | -10/Mines | Core integrity fell below 50% 1348 | -10/Mines | Released all parts (3) 1349 | -10/Mines | Core integrity fell below 20% 1349 | -10/Mines | Destroyed by D-53 Grenadier with Mini Grenade Launcher Last Messages --------------- 01311_ Critical hit (Burn: +80). 01313_ Autogun destroyed. 01314_ System corrupted by crushing effect (+4). 01318_ as-91348 destroyed. 01326_ as-58675 destroyed. 01329_ as-17281 knocked back. 01332_ as-73787 knocked back. 01335_ System corrupted: Matter fused (-10). 01338_ as-17281 destroyed. 01340_ Wheel destroyed. 01340_ as-73787 destroyed. 01344_ C-30 ARC bursts open, deploying its payload. 01344_ D-53 Grenadier unfolds itself. 01346_ The unstable cave ceiling collapses. 01346_ Wheel destroyed. 01347_ Ion Engine destroyed. 01347_ Lgt. Cannon destroyed. 01348_ Released Autogun. 01348_ Released Huge Storage Unit. 01348_ Released Signal Interpreter. Map ----- +----------------------------------------------------+ | ?????????####???# #?## #???? | | ????????????????# ### #???? | | ????????????????# ## ## ##???? | | ????????????????# ## #????? | | ????????????????##### ## #????? | | ????????????????????## ### #????? | | ?????????????????????##### #????? | | ???????????????????????## #????? | | ??????????????????????## #????? | | ?????????????????????## ##????? | | ????????????????????## ##?????? | | ????????????????????# ##?????? | | ????????????????????# ##????? | | ????????????????????## #????? | | ?????????????????????## #????? | | ??????????????????????## = #????? | | ???????????????????????### %=##???? | | ?????????????????????????##| #???? | | ?????????????????????????## #???? | | ????????????????????????## #???? | | ????????????????????????# ##??? | | ?????????????????###????# #??? | | ????????????????## ###### #??? | | ???????????# ### d # #??? | | ??????????? d #??? | | ??????????????????# ! @ #??? | | ??????????????????# = ] #??? | | ??????????????????# =! ! #??? | | ??????????????????# ! =! ##??? | | ??????????????????# #???? | | ??????????????????# #???? | | ??????????????????# # #???? | | ?????????????????###### # ; ##???? | | ?????????????????# #????? | | ?????????????????# #????? | | ?????????????????# ##########????? | | ???????????????# ???????????????? | | ??????????????# ????????????????? | | ????????????? ?????????????????? | | ??????????? ??????????????????? | | ??????????? ????????????????????? | | ??????????? ?????????????????????? | | ??????????????????????????????????? | | ??????????????????????????????????? | | ??????????????????????????????????? | | ??????????????????????????????????? | | ??????????????????????????????????? | | ??????????????????????????????????? | | ??????????????????????????????????? | | ??????????????????????????????????? | +----------------------------------------------------+ Best States ------------- Heat Dissipation 25 Energy Generation 10 Energy Capacity 250 Matter Stores 300 Matter Capacity 300 Sight Range 16 Terrain Scan Density 10 Armor Coverage 150 Evasion (%) 45 Item Schematics ----------------- None Robot Schematics ------------------ None Fabricated ------------ Nothing Alien Tech Used ----------------- None Achievements -------------- None Challenges ------------ None Game ------ Seed AerolevCargoPurifier Manual? 0 Play Time 00:17:33 Cumulative 79.6 hours Start 2023.08.28 @ 02:07:34 End 2023.08.28 @ 02:23:34 Sessions 1 Manual Loads 0 Difficulty Rogue Special Mode None Game No. 76 Rogue 76 Adventurer 0 Explorer 0 Win Type - Total 1 Types 1/0/0/0/0/0/0/0/0 Lore% 42 Gallery% 35 Achievement% 37 Wizard Run 0 Options --------- ASCII 0 Keyboard 0 Movement Mouse Keybinds 0 Fullscreen 1 Font 16/SmallcapsGlow Map View 84x54 Tactical HUD 1 Map Filters NONE Filters NONE Steam 1 RUN: 768c5ce9-e969-4c74-a665-374319980fe9